[Event "Early-Titled-Tuesday-Blitz-September-12-2023"]
[Site "Chess.com"]
[Date "2023.09.12"]
[Round "1"]
[White "jaskol95"]
[Black "Witty_Alien"]
[Result "0-1"]
[WhiteElo "2537"]
[BlackElo "2162"]
[TimeControl "180+1"]
[EndTime "8:07:00 PDT"]
[Termination "Witty_Alien won by resignation"]

1. e4 {[%clk 0:02:56.4]} 1... c5 {[%clk 0:03:00.1]} 2. Nf3 {[%clk 0:02:56.4]}
2... d6 {[%clk 0:03:00.6]} 3. Bb5+ {[%clk 0:02:55.8]} 3... Bd7 {[%clk
0:03:00.4]} 4. a4 {[%clk 0:02:54.5]} 4... g6 {[%clk 0:02:58.4]} 5. d4 {[%clk
0:02:53.2]} 5... cxd4 {[%clk 0:02:58.3]} 6. Qxd4 {[%clk 0:02:51.5]} 6... Nf6
{[%clk 0:02:57.4]} 7. Nc3 {[%clk 0:02:48.6]} 7... Bg7 {[%clk 0:02:57.2]} 8. Qd3
{[%clk 0:02:46.7]} 8... Nc6 {[%clk 0:02:55.4]} 9. O-O {[%clk 0:02:44.1]} 9...
O-O {[%clk 0:02:46.5]} 10. Bg5 {[%clk 0:02:41.1]} 10... a6 {[%clk 0:02:35.8]}
11. Bc4 {[%clk 0:02:40.2]} 11... Nb4 {[%clk 0:02:30.8]} 12. Qe2 {[%clk
0:02:38.9]} 12... Rc8 {[%clk 0:02:31]} 13. Bb3 {[%clk 0:02:39.2]} 13... Bg4
{[%clk 0:02:13.6]} 14. h3 {[%clk 0:02:34.9]} 14... Bh5 {[%clk 0:01:59.4]} 15.
Bxf6 {[%clk 0:02:26.6]} 15... Bxf6 {[%clk 0:01:59.4]} 16. g4 {[%clk 0:02:27]}
16... Bxc3 {[%clk 0:02:00.1]} 17. bxc3 {[%clk 0:02:24.9]} 17... Rxc3 {[%clk
0:02:01]} 18. gxh5 {[%clk 0:02:24.2]} 18... Qa5 {[%clk 0:02:00.7]} 19. e5 {[%clk
0:02:17.1]} 19... dxe5 {[%clk 0:01:53.2]} 20. Qxe5 {[%clk 0:02:07.5]} 20... Rc5
{[%clk 0:01:53]} 21. Qxe7 {[%clk 0:01:58]} 21... Rxh5 {[%clk 0:01:52]} 22. Kg2
{[%clk 0:01:42.8]} 22... Qf5 {[%clk 0:01:42.1]} 23. Rh1 {[%clk 0:01:30.7]} 23...
Nc6 {[%clk 0:01:33.3]} 24. Qe3 {[%clk 0:01:23.6]} 24... Rd8 {[%clk 0:01:23.4]}
25. Rae1 {[%clk 0:01:09.4]} 25... h6 {[%clk 0:01:13.1]} 26. Qe4 {[%clk 0:01:05]}
26... Qf6 {[%clk 0:01:10.5]} 27. Re3 {[%clk 0:00:55.7]} 27... Rf5 {[%clk
0:01:08.6]} 28. h4 {[%clk 0:00:44]} 28... Rf4 {[%clk 0:00:46.3]} 29. h5 {[%clk
0:00:29]} 29... Rxe4 {[%clk 0:00:42.4]} 30. Rxe4 {[%clk 0:00:29.9]} 30... g5
{[%clk 0:00:38.1]} 31. Rhe1 {[%clk 0:00:29]} 31... Kg7 {[%clk 0:00:37.5]} 32.
Nh2 {[%clk 0:00:25.5]} 32... Nd4 {[%clk 0:00:32.7]} 33. Bc4 {[%clk 0:00:20.3]}
33... Qc6 {[%clk 0:00:32.1]} 34. Bd3 {[%clk 0:00:19]} 34... f5 {[%clk
0:00:32.5]} 35. f3 {[%clk 0:00:17.5]} 35... fxe4 {[%clk 0:00:31.9]} 36. Bxe4
{[%clk 0:00:18.4]} 36... Qc3 {[%clk 0:00:31.2]} 37. Ng4 {[%clk 0:00:18.3]} 37...
Qxe1 {[%clk 0:00:29.8]} 38. Nf2 {[%clk 0:00:17.8]} 38... Rf8 {[%clk 0:00:28.8]}
39. Nd3 {[%clk 0:00:18.1]} 39... Qe2+ {[%clk 0:00:28.8]} 40. Kg3 {[%clk
0:00:18.7]} 40... Rxf3+ {[%clk 0:00:29.1]} 41. Bxf3 {[%clk 0:00:19.2]} 41...
Qxf3+ {[%clk 0:00:28.6]} 42. Kh2 {[%clk 0:00:20.1]} 42... Ne2 {[%clk 0:00:27.6]}
43. Ne5 {[%clk 0:00:17.3]} 43... Qg3+ {[%clk 0:00:27.9]} 0-1

[Event "Early-Titled-Tuesday-Blitz-September-12-2023"]
[Site "Chess.com"]
[Date "2023.09.12"]
[Round "1"]
[White "drragnar1"]
[Black "Druid24"]
[Result "1-0"]
[WhiteElo "2389"]
[BlackElo "2651"]
[TimeControl "180+1"]
[EndTime "8:07:01 PDT"]
[Termination "drragnar1 won by resignation"]

1. c4 {[%clk 0:02:58.9]} 1... Nf6 {[%clk 0:02:52.4]} 2. Nc3 {[%clk 0:02:58.8]}
2... g6 {[%clk 0:02:51.8]} 3. g3 {[%clk 0:02:59]} 3... Bg7 {[%clk 0:02:52.1]} 4.
Bg2 {[%clk 0:02:59.7]} 4... O-O {[%clk 0:02:52.9]} 5. Nf3 {[%clk 0:02:58.5]}
5... d6 {[%clk 0:02:53.8]} 6. O-O {[%clk 0:02:58.7]} 6... c6 {[%clk 0:02:54.2]}
7. Rb1 {[%clk 0:02:54.6]} 7... Bf5 {[%clk 0:02:51.6]} 8. d3 {[%clk 0:02:53.9]}
8... Qd7 {[%clk 0:02:51.8]} 9. b4 {[%clk 0:02:50.8]} 9... Bh3 {[%clk 0:02:51.7]}
10. b5 {[%clk 0:02:48.7]} 10... Bxg2 {[%clk 0:02:50.7]} 11. Kxg2 {[%clk
0:02:48.2]} 11... Rc8 {[%clk 0:02:45.7]} 12. bxc6 {[%clk 0:02:37.2]} 12... Nxc6
{[%clk 0:02:45.5]} 13. Nd5 {[%clk 0:02:13.5]} 13... Nxd5 {[%clk 0:02:33.9]} 14.
cxd5 {[%clk 0:02:14.4]} 14... Ne5 {[%clk 0:02:34.8]} 15. Nxe5 {[%clk 0:02:12]}
15... Bxe5 {[%clk 0:02:35.7]} 16. Qb3 {[%clk 0:02:11.5]} 16... b6 {[%clk
0:02:35.5]} 17. Be3 {[%clk 0:02:06.4]} 17... Rc3 {[%clk 0:02:31.7]} 18. Qb4
{[%clk 0:02:02.6]} 18... Rac8 {[%clk 0:02:30.9]} 19. Rfc1 {[%clk 0:01:59.5]}
19... Qb7 {[%clk 0:02:25.4]} 20. Qe4 {[%clk 0:01:25.2]} 20... Rc2 {[%clk
0:02:25.5]} 21. Rxc2 {[%clk 0:00:52.9]} 21... Rxc2 {[%clk 0:02:26.4]} 22. d4
{[%clk 0:00:52.9]} 22... Rc4 {[%clk 0:02:07.4]} 23. Rc1 {[%clk 0:00:48.8]} 23...
f5 {[%clk 0:02:03.9]} 24. Qf3 {[%clk 0:00:44.1]} 24... Rxc1 {[%clk 0:02:02.9]}
25. Bxc1 {[%clk 0:00:45]} 25... Bxd4 {[%clk 0:02:01.9]} 26. e4 {[%clk
0:00:42.5]} 26... Qc8 {[%clk 0:01:51.2]} 27. Bg5 {[%clk 0:00:38]} 27... Kf7
{[%clk 0:01:49.1]} 28. g4 {[%clk 0:00:32]} 28... b5 {[%clk 0:01:35.5]} 29. gxf5
{[%clk 0:00:31.6]} 29... gxf5 {[%clk 0:01:36.3]} 30. Qh5+ {[%clk 0:00:31.7]}
30... Kg8 {[%clk 0:01:34]} 31. Bxe7 {[%clk 0:00:28.5]} 31... fxe4 {[%clk
0:01:21.7]} 32. Qg5+ {[%clk 0:00:24]} 32... Bg7 {[%clk 0:01:21.7]} 33. Bxd6
{[%clk 0:00:24.4]} 33... Qd7 {[%clk 0:01:11.9]} 34. Be5 {[%clk 0:00:24]} 34...
e3 {[%clk 0:01:07.3]} 35. Qxg7+ {[%clk 0:00:15.3]} 35... Qxg7+ {[%clk
0:01:07.3]} 36. Bxg7 {[%clk 0:00:16.2]} 36... Kxg7 {[%clk 0:01:07.8]} 37. fxe3
{[%clk 0:00:16.2]} 37... b4 {[%clk 0:01:07.7]} 38. Kf2 {[%clk 0:00:16]} 38... a5
{[%clk 0:01:08.3]} 39. Ke2 {[%clk 0:00:16.7]} 39... Kf6 {[%clk 0:01:06.7]} 40.
Kd3 {[%clk 0:00:17]} 40... Ke5 {[%clk 0:01:07.2]} 41. Kc4 {[%clk 0:00:16.9]}
41... h5 {[%clk 0:00:59.5]} 42. h4 {[%clk 0:00:15.8]} 42... Kd6 {[%clk
0:00:59.2]} 43. e4 {[%clk 0:00:15.8]} 43... Ke5 {[%clk 0:00:59.9]} 44. Kb3
{[%clk 0:00:16.2]} 44... Kd6 {[%clk 0:00:59.6]} 45. Ka4 {[%clk 0:00:16.6]} 45...
Kc5 {[%clk 0:00:59.2]} 46. Kxa5 {[%clk 0:00:16.5]} 46... Kc4 {[%clk 0:00:59.6]}
47. d6 {[%clk 0:00:16.1]} 47... Kc3 {[%clk 0:01:00.1]} 48. d7 {[%clk 0:00:16.7]}
48... Kb2 {[%clk 0:01:00.7]} 49. d8=Q {[%clk 0:00:16.6]} 1-0

[Event "Early-Titled-Tuesday-Blitz-September-12-2023"]
[Site "Chess.com"]
[Date "2023.09.12"]
[Round "1"]
[White "mjray79"]
[Black "AleksandrAleksikov"]
[Result "0-1"]
[WhiteElo "2561"]
[BlackElo "2284"]
[TimeControl "180+1"]
[EndTime "8:07:01 PDT"]
[Termination "AleksandrAleksikov won by checkmate"]

1. Nf3 {[%clk 0:03:00.9]} 1... Nf6 {[%clk 0:02:59.3]} 2. c4 {[%clk 0:02:59.6]}
2... g6 {[%clk 0:02:59]} 3. e3 {[%clk 0:02:57]} 3... Bg7 {[%clk 0:02:58.7]} 4.
d4 {[%clk 0:02:57.6]} 4... d6 {[%clk 0:02:58.1]} 5. Be2 {[%clk 0:02:58.1]} 5...
O-O {[%clk 0:02:57.7]} 6. O-O {[%clk 0:02:57.3]} 6... Nbd7 {[%clk 0:02:53.1]} 7.
Nc3 {[%clk 0:02:54.3]} 7... e5 {[%clk 0:02:52.6]} 8. b4 {[%clk 0:02:51.7]} 8...
c6 {[%clk 0:02:49.7]} 9. a4 {[%clk 0:02:49.4]} 9... Re8 {[%clk 0:02:42.3]} 10.
Ba3 {[%clk 0:02:49.1]} 10... e4 {[%clk 0:02:40.3]} 11. Nd2 {[%clk 0:02:48.8]}
11... Nf8 {[%clk 0:02:38.9]} 12. b5 {[%clk 0:02:36.9]} 12... Qe7 {[%clk
0:02:27.3]} 13. Qc2 {[%clk 0:02:32.3]} 13... c5 {[%clk 0:02:22.3]} 14. dxc5
{[%clk 0:02:02.1]} 14... dxc5 {[%clk 0:02:20.4]} 15. Rad1 {[%clk 0:02:02.8]}
15... h5 {[%clk 0:02:08.2]} 16. Nd5 {[%clk 0:02:01.3]} 16... Nxd5 {[%clk
0:02:06.8]} 17. cxd5 {[%clk 0:02:02.2]} 17... b6 {[%clk 0:02:03]} 18. d6 {[%clk
0:01:57.6]} 18... Qe5 {[%clk 0:01:40]} 19. a5 {[%clk 0:01:29.4]} 19... Bg4
{[%clk 0:01:32.9]} 20. Nc4 {[%clk 0:01:27.7]} 20... Qg5 {[%clk 0:01:25]} 21.
Bxg4 {[%clk 0:01:19.7]} 21... hxg4 {[%clk 0:01:21.5]} 22. Bb2 {[%clk 0:01:10.2]}
22... Nd7 {[%clk 0:01:08.3]} 23. Bxg7 {[%clk 0:01:04.1]} 23... Kxg7 {[%clk
0:01:06.9]} 24. Qc3+ {[%clk 0:01:04.7]} 24... f6 {[%clk 0:01:04.3]} 25. axb6
{[%clk 0:01:00.1]} 25... Rh8 {[%clk 0:00:52.3]} 26. b7 {[%clk 0:00:38.1]} 26...
Rxh2 {[%clk 0:00:21.4]} 27. Rfe1 {[%clk 0:00:22.7]} 27... Rah8 {[%clk
0:00:13.3]} 28. Kf1 {[%clk 0:00:22.6]} 28... g3 {[%clk 0:00:12.1]} 29. Nd2
{[%clk 0:00:12.7]} 29... gxf2 {[%clk 0:00:09]} 30. Nxe4 {[%clk 0:00:12.9]} 30...
Qxg2+ {[%clk 0:00:07.7]} 31. Ke2 {[%clk 0:00:13.6]} 31... fxe1=Q+ {[%clk
0:00:06]} 32. Kd3 {[%clk 0:00:14.2]} 32... Qge2# {[%clk 0:00:04.4]} 0-1

[Event "Early-Titled-Tuesday-Blitz-September-12-2023"]
[Site "Chess.com"]
[Date "2023.09.12"]
[Round "1"]
[White "Vuk2000"]
[Black "OlaaLa"]
[Result "1-0"]
[WhiteElo "2760"]
[BlackElo "2428"]
[TimeControl "180+1"]
[EndTime "8:07:02 PDT"]
[Termination "Vuk2000 won by resignation"]

1. d4 {[%clk 0:03:00.9]} 1... f5 {[%clk 0:02:59.2]} 2. c4 {[%clk 0:02:59.2]}
2... Nf6 {[%clk 0:02:59]} 3. Nf3 {[%clk 0:02:59.5]} 3... g6 {[%clk 0:02:58.4]}
4. g3 {[%clk 0:02:59.9]} 4... Bg7 {[%clk 0:02:59]} 5. Bg2 {[%clk 0:03:00.5]}
5... O-O {[%clk 0:02:59.5]} 6. b4 {[%clk 0:02:52.8]} 6... d6 {[%clk 0:02:57]} 7.
O-O {[%clk 0:02:51]} 7... c6 {[%clk 0:02:43.3]} 8. Nc3 {[%clk 0:02:44.4]} 8...
Ne4 {[%clk 0:02:36.3]} 9. Bb2 {[%clk 0:02:40.7]} 9... Nxc3 {[%clk 0:02:24.4]}
10. Bxc3 {[%clk 0:02:40.8]} 10... Be6 {[%clk 0:02:24.9]} 11. Qd3 {[%clk
0:02:25.3]} 11... f4 {[%clk 0:02:23.9]} 12. gxf4 {[%clk 0:02:06.3]} 12... Qd7
{[%clk 0:01:56.7]} 13. Ng5 {[%clk 0:01:13.5]} 13... h6 {[%clk 0:01:11.4]} 14.
Nxe6 {[%clk 0:01:10]} 14... Qxe6 {[%clk 0:01:12.3]} 15. d5 {[%clk 0:00:32.9]}
15... Qg4 {[%clk 0:01:11.8]} 16. Bxg7 {[%clk 0:00:22.9]} 16... Kxg7 {[%clk
0:01:12.7]} 17. e3 {[%clk 0:00:23.3]} 17... cxd5 {[%clk 0:00:34.5]} 18. Qxd5
{[%clk 0:00:20.9]} 18... Nd7 {[%clk 0:00:34.4]} 19. Kh1 {[%clk 0:00:15.8]} 19...
Rab8 {[%clk 0:00:32.7]} 20. Rg1 {[%clk 0:00:15.6]} 20... Nf6 {[%clk 0:00:28.6]}
21. Qd3 {[%clk 0:00:15.5]} 21... Qe6 {[%clk 0:00:19.9]} 22. Bxb7 {[%clk
0:00:08.9]} 22... Ng4 {[%clk 0:00:16.2]} 23. Rxg4 {[%clk 0:00:06.8]} 23... Qxg4
{[%clk 0:00:15.8]} 24. Rg1 {[%clk 0:00:07.6]} 24... Qe6 {[%clk 0:00:15.5]} 25.
Bd5 {[%clk 0:00:07.6]} 25... Qf6 {[%clk 0:00:16.1]} 26. Be4 {[%clk 0:00:07.8]}
26... g5 {[%clk 0:00:14.6]} 27. fxg5 {[%clk 0:00:07.3]} 27... hxg5 {[%clk
0:00:15.2]} 28. f4 {[%clk 0:00:07.5]} 28... Rh8 {[%clk 0:00:14]} 29. Rxg5+
{[%clk 0:00:07.5]} 29... Kf8 {[%clk 0:00:14.1]} 30. Rf5 {[%clk 0:00:07.9]} 30...
Rxb4 {[%clk 0:00:14.1]} 31. Rxf6+ {[%clk 0:00:08.2]} 31... exf6 {[%clk 0:00:15]}
32. Qxd6+ {[%clk 0:00:08.6]} 32... Kg7 {[%clk 0:00:14.7]} 33. Qe7+ {[%clk
0:00:07.7]} 33... Kh6 {[%clk 0:00:14.3]} 34. Qxf6+ {[%clk 0:00:07.9]} 1-0

[Event "Early-Titled-Tuesday-Blitz-September-12-2023"]
[Site "Chess.com"]
[Date "2023.09.12"]
[Round "1"]
[White "dzilleruelo"]
[Black "Russian_berezka"]
[Result "1/2-1/2"]
[WhiteElo "2313"]
[BlackElo "2612"]
[TimeControl "180+1"]
[EndTime "8:07:02 PDT"]
[Termination "Game drawn by repetition"]

1. e4 {[%clk 0:03:00.9]} 1... c5 {[%clk 0:02:59.6]} 2. Nf3 {[%clk 0:03:00.5]}
2... Nc6 {[%clk 0:02:58.8]} 3. Bb5 {[%clk 0:02:59.5]} 3... e6 {[%clk 0:02:58.1]}
4. Bxc6 {[%clk 0:02:58.4]} 4... bxc6 {[%clk 0:02:57.5]} 5. O-O {[%clk
0:02:59.3]} 5... d6 {[%clk 0:02:53]} 6. Qe2 {[%clk 0:02:53.6]} 6... e5 {[%clk
0:02:50.4]} 7. c3 {[%clk 0:02:53.1]} 7... Bg4 {[%clk 0:02:30.9]} 8. h3 {[%clk
0:02:52.4]} 8... Bh5 {[%clk 0:02:25.5]} 9. g4 {[%clk 0:02:52.2]} 9... Bg6 {[%clk
0:02:25.2]} 10. d4 {[%clk 0:02:53.1]} 10... Qc7 {[%clk 0:02:04.3]} 11. dxe5
{[%clk 0:02:52.1]} 11... dxe5 {[%clk 0:02:04.4]} 12. Na3 {[%clk 0:02:49.5]}
12... Nf6 {[%clk 0:02:03.5]} 13. Nc4 {[%clk 0:02:40.3]} 13... Nd7 {[%clk
0:01:40.2]} 14. Bg5 {[%clk 0:02:30.1]} 14... f6 {[%clk 0:01:39.4]} 15. Bh4
{[%clk 0:02:30.4]} 15... Be7 {[%clk 0:01:38.6]} 16. Rad1 {[%clk 0:02:27.8]}
16... O-O {[%clk 0:01:36.3]} 17. Bg3 {[%clk 0:02:24.1]} 17... Rfd8 {[%clk
0:01:33.6]} 18. Nh4 {[%clk 0:02:23.8]} 18... Bf7 {[%clk 0:01:31.8]} 19. Nf5
{[%clk 0:02:23.8]} 19... Bf8 {[%clk 0:01:31.7]} 20. b3 {[%clk 0:02:20.9]} 20...
Nb6 {[%clk 0:01:27.9]} 21. Nxb6 {[%clk 0:02:16.1]} 21... axb6 {[%clk 0:01:25.3]}
22. c4 {[%clk 0:02:16.4]} 22... g6 {[%clk 0:01:21.3]} 23. Ne3 {[%clk 0:02:15.8]}
23... Rd4 {[%clk 0:01:21]} 24. Nc2 {[%clk 0:02:11]} 24... Rxd1 {[%clk
0:01:19.2]} 25. Rxd1 {[%clk 0:02:03.2]} 25... Rxa2 {[%clk 0:01:19.5]} 26. Qd3
{[%clk 0:02:04.1]} 26... b5 {[%clk 0:01:06.9]} 27. Ne3 {[%clk 0:01:53.7]} 27...
Qa5 {[%clk 0:00:51.1]} 28. cxb5 {[%clk 0:01:44.1]} 28... Qxb5 {[%clk 0:00:52]}
29. Nc4 {[%clk 0:01:41.9]} 29... Qa6 {[%clk 0:00:50.6]} 30. Qd8 {[%clk
0:01:23.4]} 30... Ra1 {[%clk 0:00:45.4]} 31. Rxa1 {[%clk 0:01:15.1]} 31... Qxa1+
{[%clk 0:00:46.3]} 32. Kg2 {[%clk 0:01:15.7]} 32... Qd4 {[%clk 0:00:44.5]} 33.
Qxf6 {[%clk 0:01:13.8]} 33... Qxe4+ {[%clk 0:00:44.5]} 34. Kh2 {[%clk
0:01:14.2]} 34... Bd5 {[%clk 0:00:43]} 35. f3 {[%clk 0:01:03.2]} 35... Qe2+
{[%clk 0:00:33.1]} 36. Kg1 {[%clk 0:01:02.6]} 36... Bxf3 {[%clk 0:00:32.2]} 37.
Qe6+ {[%clk 0:00:59.7]} 37... Kg7 {[%clk 0:00:24.6]} 38. Bxe5+ {[%clk
0:00:45.4]} 38... Kh6 {[%clk 0:00:25]} 39. Bf4+ {[%clk 0:00:40.5]} 39... Kg7
{[%clk 0:00:25.4]} 40. Be5+ {[%clk 0:00:36.8]} 40... Kh6 {[%clk 0:00:25.8]} 41.
Bf4+ {[%clk 0:00:12.3]} 41... Kg7 {[%clk 0:00:25.9]} 42. Be5+ {[%clk 0:00:11.9]}
1/2-1/2

[Event "Early-Titled-Tuesday-Blitz-September-12-2023"]
[Site "Chess.com"]
[Date "2023.09.12"]
[Round "1"]
[White "Ncatt"]
[Black "Fandorine"]
[Result "1-0"]
[WhiteElo "2527"]
[BlackElo "2918"]
[TimeControl "180+1"]
[EndTime "8:07:03 PDT"]
[Termination "Ncatt won by resignation"]

1. e4 {[%clk 0:03:00.3]} 1... e5 {[%clk 0:02:55.4]} 2. Nf3 {[%clk 0:02:58.8]}
2... Nc6 {[%clk 0:02:49.4]} 3. Bc4 {[%clk 0:02:58.1]} 3... Nf6 {[%clk
0:02:43.9]} 4. O-O {[%clk 0:02:55.3]} 4... Nxe4 {[%clk 0:02:38.8]} 5. Qe2 {[%clk
0:02:53.7]} 5... d5 {[%clk 0:02:38.4]} 6. Bb5 {[%clk 0:02:52]} 6... Bd6 {[%clk
0:02:36]} 7. c4 {[%clk 0:02:49.7]} 7... a6 {[%clk 0:02:07.5]} 8. cxd5 {[%clk
0:02:45.8]} 8... axb5 {[%clk 0:02:06.8]} 9. dxc6 {[%clk 0:02:45]} 9... Nf6
{[%clk 0:02:05.2]} 10. cxb7 {[%clk 0:02:43.1]} 10... Bxb7 {[%clk 0:01:50.9]} 11.
Qxb5+ {[%clk 0:02:41.1]} 11... Qd7 {[%clk 0:01:51.8]} 12. Qxb7 {[%clk
0:02:39.1]} 12... O-O {[%clk 0:01:52.7]} 13. Qb3 {[%clk 0:02:29.2]} 13... e4
{[%clk 0:01:52.1]} 14. Ne1 {[%clk 0:02:24.5]} 14... Rab8 {[%clk 0:01:43.9]} 15.
Qc4 {[%clk 0:02:19.8]} 15... Qg4 {[%clk 0:01:37.7]} 16. h3 {[%clk 0:02:14]}
16... Qf4 {[%clk 0:01:35.5]} 17. g3 {[%clk 0:02:12.3]} 17... Qf5 {[%clk
0:01:35.7]} 18. Kg2 {[%clk 0:02:10.6]} 18... h5 {[%clk 0:01:31.9]} 19. h4 {[%clk
0:02:01.9]} 19... Ng4 {[%clk 0:01:13.3]} 20. Nc3 {[%clk 0:01:52.8]} 20... Rb4
{[%clk 0:01:08.8]} 21. Qe2 {[%clk 0:01:43]} 21... Qg6 {[%clk 0:01:08.3]} 22. d3
{[%clk 0:01:36.8]} 22... f5 {[%clk 0:00:55.9]} 23. Bg5 {[%clk 0:01:23.8]} 23...
Rfb8 {[%clk 0:00:40.5]} 24. b3 {[%clk 0:01:17.7]} 24... Be5 {[%clk 0:00:40.7]}
25. Rc1 {[%clk 0:01:12.9]} 25... Kh7 {[%clk 0:00:35.7]} 26. dxe4 {[%clk
0:01:06.7]} 26... fxe4 {[%clk 0:00:31.7]} 27. Nd5 {[%clk 0:01:02.3]} 27... Rd4
{[%clk 0:00:31.8]} 28. Ne3 {[%clk 0:00:58.7]} 28... Nf6 {[%clk 0:00:17.8]} 29.
Bxf6 {[%clk 0:00:56.2]} 29... gxf6 {[%clk 0:00:18.7]} 30. Rc4 {[%clk 0:00:51.2]}
30... Rd7 {[%clk 0:00:13.6]} 31. N1c2 {[%clk 0:00:40.7]} 31... Rg8 {[%clk
0:00:14.2]} 32. Rc5 {[%clk 0:00:37]} 32... Rd3 {[%clk 0:00:11.4]} 33. Nb4 {[%clk
0:00:33.7]} 33... Rd4 {[%clk 0:00:06.9]} 34. Nc6 {[%clk 0:00:31.9]} 34... Bxg3
{[%clk 0:00:02.3]} 35. Qxh5+ {[%clk 0:00:25.8]} 1-0

[Event "Early-Titled-Tuesday-Blitz-September-12-2023"]
[Site "Chess.com"]
[Date "2023.09.12"]
[Round "1"]
[White "alexrustemov"]
[Black "DeArron_Fox"]
[Result "1-0"]
[WhiteElo "2898"]
[BlackElo "2497"]
[TimeControl "180+1"]
[EndTime "8:07:06 PDT"]
[Termination "alexrustemov won on time"]

1. d4 {[%clk 0:03:00.9]} 1... d5 {[%clk 0:02:45.5]} 2. c4 {[%clk 0:03:01.2]}
2... e6 {[%clk 0:02:42.9]} 3. Nc3 {[%clk 0:03:01.4]} 3... Nf6 {[%clk 0:02:39.5]}
4. Bg5 {[%clk 0:03:01.3]} 4... Be7 {[%clk 0:02:35.8]} 5. e3 {[%clk 0:03:01.5]}
5... h6 {[%clk 0:02:35.8]} 6. Bxf6 {[%clk 0:03:00.7]} 6... Bxf6 {[%clk
0:02:36.7]} 7. Nf3 {[%clk 0:03:01.1]} 7... O-O {[%clk 0:02:35]} 8. Rc1 {[%clk
0:03:01.6]} 8... b6 {[%clk 0:02:17.1]} 9. cxd5 {[%clk 0:02:59.7]} 9... exd5
{[%clk 0:02:18]} 10. b4 {[%clk 0:02:59.2]} 10... c6 {[%clk 0:02:12.3]} 11. Be2
{[%clk 0:02:55.9]} 11... Be6 {[%clk 0:02:04.6]} 12. a4 {[%clk 0:02:47.4]} 12...
Nd7 {[%clk 0:01:46.6]} 13. O-O {[%clk 0:02:45.7]} 13... a5 {[%clk 0:01:40.2]}
14. bxa5 {[%clk 0:02:37]} 14... Rxa5 {[%clk 0:01:39.6]} 15. Rb1 {[%clk
0:02:36.9]} 15... Qa8 {[%clk 0:01:27.3]} 16. Qc2 {[%clk 0:02:36.3]} 16... c5
{[%clk 0:01:12.4]} 17. Bb5 {[%clk 0:02:30]} 17... cxd4 {[%clk 0:00:54.8]} 18.
Nxd4 {[%clk 0:02:23.5]} 18... Rc8 {[%clk 0:00:37.3]} 19. Qd2 {[%clk 0:02:16.4]}
19... Nc5 {[%clk 0:00:33.6]} 20. Rfd1 {[%clk 0:02:10.3]} 20... Ra7 {[%clk
0:00:28.9]} 21. h3 {[%clk 0:02:09.7]} 21... Rac7 {[%clk 0:00:28]} 22. Nde2
{[%clk 0:01:57.1]} 22... Rd8 {[%clk 0:00:16.6]} 23. Nd4 {[%clk 0:01:43.4]} 23...
Qa5 {[%clk 0:00:12.8]} 24. Nce2 {[%clk 0:01:39.4]} 24... Qxd2 {[%clk 0:00:10.8]}
25. Rxd2 {[%clk 0:01:40.3]} 25... Ne4 {[%clk 0:00:11.2]} 26. Rdb2 {[%clk
0:01:37.4]} 26... Rdc8 {[%clk 0:00:04.2]} 27. Ba6 {[%clk 0:01:31.4]} 27... Ra8
{[%clk 0:00:04.2]} 28. Rxb6 {[%clk 0:01:29.4]} 28... Nd2 {[%clk 0:00:04]} 29.
Ra1 {[%clk 0:01:20.2]} 29... Bd7 {[%clk 0:00:01.7]} 30. a5 {[%clk 0:01:14.4]}
30... Rca7 {[%clk 0:00:01.9]} 31. Bb5 {[%clk 0:01:02.7]} 31... Rxa5 {[%clk
0:00:02.8]} 32. Rxa5 {[%clk 0:00:45.3]} 32... Rxa5 {[%clk 0:00:03.7]} 33. Rb8+
{[%clk 0:00:35.1]} 33... Kh7 {[%clk 0:00:03.6]} 34. Bd3+ {[%clk 0:00:35.7]}
34... g6 {[%clk 0:00:04]} 35. Rb7 {[%clk 0:00:36.3]} 35... Ra1+ {[%clk
0:00:02.3]} 36. Kh2 {[%clk 0:00:35.2]} 36... Nf1+ {[%clk 0:00:02.5]} 37. Kg1
{[%clk 0:00:35.7]} 37... Nxe3+ {[%clk 0:00:02.6]} 38. Bb1 {[%clk 0:00:32.2]}
38... Be6 {[%clk 0:00:01.5]} 39. fxe3 {[%clk 0:00:29.6]} 1-0

[Event "Early-Titled-Tuesday-Blitz-September-12-2023"]
[Site "Chess.com"]
[Date "2023.09.12"]
[Round "1"]
[White "ShahMatKanal"]
[Black "Zhigalko_Sergei"]
[Result "0-1"]
[WhiteElo "2489"]
[BlackElo "2881"]
[TimeControl "180+1"]
[EndTime "8:07:06 PDT"]
[Termination "Zhigalko_Sergei won on time"]

1. d4 {[%clk 0:03:00.9]} 1... Nf6 {[%clk 0:03:00]} 2. c4 {[%clk 0:02:59.6]} 2...
e6 {[%clk 0:03:00.4]} 3. Nf3 {[%clk 0:02:56.4]} 3... b6 {[%clk 0:03:00.7]} 4. g3
{[%clk 0:02:56.3]} 4... Ba6 {[%clk 0:03:00.7]} 5. Nbd2 {[%clk 0:02:53.2]} 5...
Bb7 {[%clk 0:02:55.4]} 6. Bg2 {[%clk 0:02:51.4]} 6... c5 {[%clk 0:02:55.6]} 7.
O-O {[%clk 0:02:50.1]} 7... cxd4 {[%clk 0:02:56]} 8. Nxd4 {[%clk 0:02:51]} 8...
Bxg2 {[%clk 0:02:56.7]} 9. Kxg2 {[%clk 0:02:51.3]} 9... Qc7 {[%clk 0:02:57.2]}
10. b3 {[%clk 0:02:47.5]} 10... Qb7+ {[%clk 0:02:56.4]} 11. N4f3 {[%clk
0:02:39]} 11... Be7 {[%clk 0:02:54.2]} 12. Bb2 {[%clk 0:02:37.2]} 12... O-O
{[%clk 0:02:54.1]} 13. Rc1 {[%clk 0:02:27.2]} 13... d6 {[%clk 0:02:53.8]} 14.
Qc2 {[%clk 0:02:27.2]} 14... Nbd7 {[%clk 0:02:53.7]} 15. Qb1 {[%clk 0:02:25.1]}
15... a6 {[%clk 0:02:52.4]} 16. Rfd1 {[%clk 0:02:24.6]} 16... b5 {[%clk
0:02:52.7]} 17. Kg1 {[%clk 0:02:13.6]} 17... h6 {[%clk 0:02:52.4]} 18. Qa1
{[%clk 0:02:08]} 18... Rfc8 {[%clk 0:02:45.2]} 19. h3 {[%clk 0:01:40.8]} 19...
Nc5 {[%clk 0:02:43]} 20. Bd4 {[%clk 0:01:26.4]} 20... b4 {[%clk 0:02:24.6]} 21.
Bxc5 {[%clk 0:01:16.9]} 21... Rxc5 {[%clk 0:02:24.1]} 22. Qd4 {[%clk 0:01:12.2]}
22... a5 {[%clk 0:02:12.2]} 23. Ne1 {[%clk 0:00:57.1]} 23... a4 {[%clk
0:01:40.9]} 24. Nd3 {[%clk 0:00:56.6]} 24... Rcc8 {[%clk 0:01:41.6]} 25. Qb2
{[%clk 0:00:42.8]} 25... Nd7 {[%clk 0:01:28.5]} 26. e4 {[%clk 0:00:39.7]} 26...
Bf6 {[%clk 0:01:24.7]} 27. Qc2 {[%clk 0:00:39.4]} 27... axb3 {[%clk 0:01:04.4]}
28. axb3 {[%clk 0:00:39.4]} 28... Bc3 {[%clk 0:01:04.6]} 29. Nb1 {[%clk
0:00:35.6]} 29... Bd4 {[%clk 0:00:58.1]} 30. Qe2 {[%clk 0:00:32.8]} 30... Ra1
{[%clk 0:00:47.7]} 31. Nd2 {[%clk 0:00:31.4]} 31... Ra2 {[%clk 0:00:47]} 32. Qf1
{[%clk 0:00:23.8]} 32... Nc5 {[%clk 0:00:41.7]} 33. Nxc5 {[%clk 0:00:14.2]}
33... dxc5 {[%clk 0:00:42.6]} 34. Rb1 {[%clk 0:00:04.1]} 34... Rd8 {[%clk
0:00:39.6]} 35. Kh1 {[%clk 0:00:02.3]} 35... Bf6 {[%clk 0:00:27.4]} 36. Qe2
{[%clk 0:00:02.6]} 36... Bc3 {[%clk 0:00:26.8]} 0-1